bitfinex-derivatives/quotes_SOLF0:USTF0_20260305
["timestamp","ask_amount","ask_price","bid_price","bid_amount"]
[1772750214900,6.35560981,89.249,89.211,6.45124464]
[1772750219900,6.35560981,89.249,89.21,10.087]
[1772750220101,6.40525393,89.239,89.202,10.088]
[1772750220805,6.40525393,89.239,89.202,16.43055245]
[1772750221007,6.40525393,89.239,89.203,6.34255245]
[1772750221207,6.40525393,89.239,89.202,10.088]
[1772750222305,6.40525393,89.239,89.202,16.43055245]
[1772750222706,6.40525393,89.239,89.203,6.34255245]
[1772750222908,6.40525393,89.248,89.206,6.34255245]
[1772750224507,6.40525393,89.248,89.2,3.53618038]
[1772750224508,6.40525393,89.248,89.208,6.34255245]
[1772750227103,10.083,89.247,89.208,6.34255245]
[1772750233812,16.48825393,89.247,89.208,6.34255245]
[1772750236207,6.40525393,89.247,89.212,6.34255245]
[1772750236510,13.95233812,89.298,89.212,6.34255245]
[1772750236511,6.40525393,89.289,89.212,6.34255245]
[1772750236715,29.64912663,89.337,89.231,6.34255245]
[1772750236716,6.40525393,89.279,89.231,6.34255245]
[1772750237412,6.40525393,89.277,89.233,6.34255245]
[1772750246414,6.40525393,89.277,89.239,6.34255245]
[1772750246720,6.40525393,89.288,89.241,6.34255245]
[1772750247416,6.40525393,89.288,89.247,6.34255245]
[1772750249020,6.40525393,89.288,89.249,10.083]
[1772750250224,6.40525393,89.288,89.247,6.34255245]
[1772750250225,6.54444041,89.285,89.247,6.34255245]
[1772750250421,6.54444041,89.285,89.24,10.084]
[1772750250921,6.54444041,89.285,89.24,16.96042444]
[1772750251122,3.53618038,89.28,89.241,6.87642444]
[1772750251421,10.08062079,89.28,89.241,6.87642444]
[1772750251620,6.54444041,89.279,89.241,6.87642444]
[1772750253422,6.54444041,89.277,89.241,6.87642444]
[1772750254323,6.54444041,89.277,89.233,10.085]
[1772750254324,6.54444041,89.269,89.22,3.53618038]
[1772750254625,6.54444041,89.269,89.221,6.87642444]
[1772750255423,16.62644041,89.264,89.221,6.87642444]
[1772750255619,6.54444041,89.263,89.221,6.87642444]
[1772750256121,6.54444041,89.263,89.224,6.87642444]
[1772750259524,6.54444041,89.263,89.226,6.87642444]
[1772750262321,6.54444041,89.263,89.225,10.086]
[1772750262322,6.54444041,89.259,89.218,10.087]
[1772750262925,6.54444041,89.259,89.218,16.96342444]
[1772750263226,6.54444041,89.259,89.219,6.87642444]
[1772750272042,6.54444041,89.259,89.218,10.087]
[1772750273236,6.54444041,89.249,89.211,10.087]
[1772750275037,6.54444041,89.249,89.169,20.185]
[1772750275038,6.54444041,89.239,89.198,6.87642444]
[1772750275242,6.54444041,89.229,89.198,6.87642444]
[1772750275942,6.54444041,89.219,89.171,6.87642444]
[1772750276542,6.54444041,89.209,89.171,6.87642444]
[1772750278136,6.54444041,89.199,89.162,10.093]
[1772750280441,6.54444041,89.199,89.117,20.99986256]
[1772750280442,6.54444041,89.199,89.143,6.64649584]
[1772750280838,6.75436681,89.176,89.132,10.096]
[1772750281040,18.93162092,89.24,89.1,20.99986256]
[1772750281041,3.53604756,89.16,89.101,6.64649584]
[1772750281238,6.75436681,89.217,89.121,6.64649584]
[1772750281547,6.75436681,89.189,89.14,3.53604756]
[1772750281745,6.75436681,89.189,89.141,6.64649584]
[1772750282244,6.75436681,89.186,89.141,6.64649584]
[1772750285247,10.089,89.197,89.151,6.64649584]
[1772750285646,6.75436681,89.196,89.151,6.64649584]
[1772750286043,10.09,89.189,89.151,6.64649584]
[1772750290342,6.75436681,89.196,89.151,6.64649584]
[1772750293450,6.75436681,89.196,89.154,10.094]
[1772750298751,6.75436681,89.207,89.167,6.64649584]
[1772750299652,6.75436681,89.205,89.167,6.64649584]
[1772750301360,6.75436681,89.205,89.171,6.64649584]
[1772750302848,10.088,89.204,89.171,6.64649584]
[1772750304060,6.75436681,89.205,89.171,6.64649584]
[1772750304255,10.088,89.211,89.171,6.64649584]
[1772750307165,6.75436681,89.218,89.18,10.1825434]
[1772750307361,6.75436681,89.218,89.181,6.64649584]
[1772750307564,6.75436681,89.23,89.191,6.64649584]
[1772750307859,13.95233812,89.292,89.118,157.085]
[1772750307860,6.75436681,89.248,89.211,6.64649584]
[1772750308060,6.75436681,89.269,89.211,6.64649584]
[1772750308862,6.75436681,89.269,89.213,6.30137644]
[1772750309067,6.75436681,89.269,89.21,3.53604756]
[1772750309068,6.75436681,89.269,89.231,6.30137644]
[1772750310569,6.75436681,89.269,89.173,20.184]
[1772750310570,6.40700056,89.288,89.233,6.60418702]
[1772750310770,10.079,89.289,89.233,6.60418702]
[1772750310771,6.40700056,89.279,89.233,6.60418702]
[1772750312265,6.40700056,89.279,89.234,10.085]
[1772750316369,6.40700056,89.279,89.233,6.60418702]
[1772750318268,3.53604756,89.27,89.233,6.60418702]
[1772750318474,6.40700056,89.259,89.225,10.086]
[1772750320476,6.40700056,89.259,89.226,6.60418702]
[1772750320876,3.53604756,89.27,89.226,6.60418702]
[1772750321068,6.40700056,89.269,89.226,6.60418702]
[1772750323576,6.40700056,89.269,89.227,10.086]
[1772750324974,6.40700056,89.269,89.226,6.60418702]
[1772750325778,6.40700056,89.269,89.226,16.69018702]
[1772750331588,6.40700056,89.269,89.21,3.53604756]
[1772750331589,6.40700056,89.269,89.233,10.085]
[1772750341099,6.40700056,89.269,89.233,16.80128377]
[1772750347106,3.5351986,89.27,89.223,6.71628377]
[1772750347107,6.59460239,89.258,89.223,6.71628377]
[1772750347311,3.5351986,89.26,89.223,6.71628377]
[1772750347805,6.59460239,89.268,89.223,6.71628377]
[1772750348398,6.59460239,89.267,89.224,6.71628377]
[1772750349499,6.59460239,89.267,89.227,6.71628377]
[1772750351407,6.59460239,89.267,89.229,6.71628377]
[1772750352502,6.59460239,89.267,89.221,16.80228377]
[1772750352708,6.59460239,89.267,89.222,6.71628377]
[1772750354111,6.59460239,89.249,89.211,6.71628377]
[1772750354310,10.12980099,89.24,89.211,6.71628377]
[1772750354509,6.59460239,89.239,89.181,6.71628377]
[1772750355106,6.59460239,89.239,89.191,6.71628377]
[1772750355511,6.59460239,89.239,89.207,10.088]
[1772750362816,6.59460239,89.239,89.193,16.80528377]
[1772750363317,10.47273961,89.267,89.193,16.80528377]
[1772750363318,6.59460239,89.229,89.193,6.71628377]
[1772750363910,6.59460239,89.219,89.178,16.80728377]
[1772750364620,6.59460239,89.219,89.179,6.71628377]
[1772750366215,6.59460239,89.215,89.179,6.71628377]
[1772750371026,6.59460239,89.215,89.18,16.49814086]
[1772750371426,6.59460239,89.215,89.181,6.40714086]
[1772750372025,6.59460239,89.215,89.182,10.091]
[1772750378424,6.59460239,89.215,89.183,6.40714086]
[1772750378631,3.5351986,89.22,89.186,6.40714086]
[1772750379428,3.5351986,89.22,89.187,10.09]
[1772750379831,3.5351986,89.22,89.187,16.49714086]
[1772750382331,3.5351986,89.22,89.187,6.40714086]
[1772750382727,6.17944766,89.225,89.187,6.40714086]
[1772750386136,10.086,89.224,89.187,6.40714086]
[1772750386332,16.26544766,89.224,89.187,6.40714086]
[1772750388839,6.17944766,89.223,89.187,6.40714086]
[1772750393538,10.086,89.222,89.187,6.40714086]
[1772750393943,16.26644766,89.213,89.171,6.40714086]
[1772750394139,6.17944766,89.212,89.171,6.40714086]
[1772750395343,1.95099526,89.257,89.148,6.40714086]
[1772750395344,6.17944766,89.207,89.148,6.40714086]
[1772750395538,6.17944766,89.189,89.148,6.40714086]
[1772750396737,6.17944766,89.179,89.137,6.40714086]
[1772750397144,6.17944766,89.169,89.137,6.40714086]
[1772750398445,6.17944766,89.169,89.12,10.098]
[1772750398446,6.17944766,89.169,89.121,6.40714086]
[1772750399246,6.17944766,89.169,89.123,6.40714086]
[1772750399943,3.53878284,89.16,89.123,6.40714086]
[1772750400242,3.53878284,89.15,89.111,6.08489921]
[1772750400446,13.95233812,89.218,89.053,20.211]
[1772750400447,9.80029449,89.17,89.121,6.08489921]
[1772750400843,8.5326929,89.197,89.141,6.08489921]
[1772750401043,6.26151165,89.196,89.141,6.08489921]
[1772750401445,6.26151165,89.196,89.156,6.08489921]
[1772750401846,6.26151165,89.196,89.163,10.093]
[1772750402042,3.53878284,89.21,89.15,3.53878284]
[1772750402043,6.26151165,89.209,89.164,6.08489921]
[1772750402247,3.53878284,89.22,89.171,6.08489921]
[1772750402651,3.53878284,89.23,89.171,6.08489921]
[1772750402851,6.26151165,89.229,89.171,6.08489921]
[1772750403447,6.26151165,89.228,89.181,6.08489921]
[1772750403844,6.26151165,89.228,89.17,3.53878284]
[1772750403845,6.26151165,89.228,89.182,16.17589921]
[1772750405347,6.26151165,89.228,89.183,6.08489921]
[1772750408447,6.26151165,89.226,89.183,6.08489921]
[1772750410058,10.086,89.225,89.183,6.08489921]
[1772750410854,6.26151165,89.224,89.183,6.08489921]
[1772750411754,6.26151165,89.224,89.174,10.092]
[1772750411755,3.53878284,89.21,89.169,6.08489921]
[1772750411964,6.26151165,89.209,89.169,6.08489921]
[1772750412354,3.53878284,89.22,89.169,6.08489921]
[1772750412559,6.26151165,89.219,89.169,6.08489921]
[1772750412760,6.26151165,89.215,89.165,6.08489921]
[1772750412963,6.26151165,89.209,89.165,6.08489921]
[1772750413261,9.80029449,89.22,89.165,6.08489921]
[1772750413459,6.26151165,89.22,89.171,6.08489921]
[1772750415465,6.26151165,89.22,89.174,6.08489921]
[1772750416265,6.26151165,89.22,89.176,6.08489921]
[1772750418061,6.26151165,89.22,89.177,16.17589921]
[1772750418568,6.26151165,89.22,89.178,6.08489921]
[1772750420668,10.087,89.219,89.178,6.08489921]
[1772750420872,16.34851165,89.219,89.178,6.08489921]
[1772750423267,6.26151165,89.218,89.178,6.08489921]
[1772750424373,6.26151165,89.218,89.179,16.17589921]
[1772750425174,10.087,89.217,89.179,16.17589921]
[1772750426877,10.087,89.217,89.18,6.08489921]
[1772750428276,10.087,89.217,89.182,6.08489921]
[1772750431279,16.10846793,89.217,89.182,6.08489921]
[1772750431678,6.02146793,89.216,89.182,6.08489921]
[1772750432679,6.02146793,89.231,89.187,6.01569819]
[1772750433979,16.10646793,89.23,89.191,6.01569819]
[1772750434178,6.02146793,89.229,89.191,6.01569819]
[1772750437178,6.02146793,89.229,89.193,10.089]
[1772750437477,6.02146793,89.229,89.193,16.10469819]
[1772750437676,6.02146793,89.229,89.194,6.01569819]
[1772750438381,6.02146793,89.229,89.196,10.089]
[1772750439182,6.02146793,89.229,89.196,16.10469819]
[1772750439876,9.56025077,89.24,89.197,6.01569819]
[1772750440176,6.02146793,89.239,89.197,6.01569819]
[1772750442479,6.02146793,89.239,89.152,20.189]
[1772750442480,6.02146793,89.249,89.203,6.01569819]
[1772750443377,6.02146793,89.249,89.209,10.088]
[1772750443584,19.64225077,89.26,89.211,6.01569819]
[1772750444376,19.64225077,89.26,89.219,16.10169819]
[1772750444576,19.64225077,89.26,89.22,6.01569819]
[1772750445578,6.02146793,89.259,89.22,6.01569819]
[1772750447182,6.02146793,89.259,89.221,10.086]
[1772750448388,6.02146793,89.259,89.221,16.10169819]
[1772750448688,10.082,89.257,89.221,16.10169819]
[1772750450389,10.082,89.257,89.221,6.01569819]
[1772750451388,10.083,89.253,89.221,6.01569819]
[1772750456194,16.10446793,89.253,89.221,6.01569819]
[1772750457989,6.02146793,89.252,89.221,6.01569819]
[1772750460189,10.083,89.251,89.221,6.01569819]
[1772750460494,6.41376773,89.25,89.214,10.087]
[1772750461195,6.41376773,89.287,89.231,6.05025019]
[1772750461797,3.53543035,89.28,89.231,6.05025019]
[1772750461997,6.41376773,89.275,89.234,16.13525019]
[1772750465293,6.41376773,89.275,89.238,10.084]
[1772750465495,6.41376773,89.285,89.24,3.53543035]
[1772750465696,6.41376773,89.285,89.241,6.05025019]
[1772750466297,6.41376773,89.299,89.251,6.05025019]
[1772750467396,16.49176773,89.296,89.251,6.05025019]
[1772750468404,6.41376773,89.295,89.251,6.05025019]
[1772750471403,1.94960168,89.328,89.255,6.05025019]
[1772750471404,6.41376773,89.305,89.255,6.05025019]
[1772750471600,3.53543035,89.3,89.255,6.05025019]
[1772750471803,3.53543035,89.31,89.255,6.05025019]
[1772750471997,3.53543035,89.31,89.209,20.99986256]
[1772750471998,6.41376773,89.317,89.261,6.05025019]
[1772750472203,6.41376773,89.319,89.271,6.05025019]
[1772750472401,3.53543035,89.33,89.281,6.05025019]
[1772750472607,1.94899022,89.358,89.227,20.172]
[1772750472608,6.41376773,89.339,89.291,6.05025019]
[1772750472795,6.41376773,89.339,89.292,6.05025019]
[1772750473195,3.53543035,89.34,89.292,6.05025019]
[1772750473397,6.41376773,89.339,89.292,6.05025019]
[1772750473601,3.53543035,89.32,89.271,6.05025019]
[1772750473797,6.41376773,89.319,89.271,6.05025019]
[1772750475505,3.53543035,89.33,89.271,6.05025019]
[1772750475698,3.53543035,89.33,89.276,6.05025019]
[1772750476502,3.53543035,89.33,89.281,6.05025019]
[1772750477004,6.41376773,89.332,89.283,6.05025019]
[1772750477708,6.41376773,89.332,89.285,6.05025019]
[1772750478204,3.53543035,89.36,89.303,6.05025019]
[1772750478605,6.41376773,89.394,89.35,9.58568054]
[1772750478907,6.41376773,89.379,89.331,6.05025019]
[1772750479406,3.53543035,89.37,89.331,6.05025019]
[1772750480208,6.41376773,89.349,89.3,6.05025019]
[1772750480509,6.41376773,89.339,89.3,6.05025019]
[1772750480711,6.41376773,89.319,89.271,6.05025019]
[1772750481410,6.41376773,89.319,89.275,10.08]
[1772750482507,6.41376773,89.309,89.264,10.081]
[1772750482709,6.41376773,89.299,89.258,6.05025019]
[1772750483709,3.53543035,89.29,89.243,6.05025019]
[1772750483908,6.41376773,89.289,89.243,6.05025019]
[1772750484108,9.94919808,89.28,89.23,9.58568054]
[1772750484412,6.41376773,89.279,89.231,6.05025019]
[1772750484909,6.41376773,89.279,89.231,16.13525019]
[1772750485107,6.41376773,89.269,89.211,6.05025019]
[1772750486506,6.41376773,89.259,89.213,6.05025019]
[1772750489615,5.98557968,89.277,89.213,6.05025019]
[1772750490113,5.98557968,89.277,89.221,6.32898971]
[1772750490612,6.44774007,89.29,89.25,3.53543035]
[1772750491008,6.44774007,89.29,89.241,6.32898971]
[1772750492709,6.44774007,89.29,89.243,6.32898971]
[1772750493412,16.52674007,89.29,89.243,6.32898971]
[1772750494306,6.44774007,89.29,89.243,6.32898971]
[1772750495117,6.44774007,89.29,89.243,16.41298971]
[1772750495610,6.44774007,89.29,89.244,6.32898971]
[1772750496215,6.44774007,89.305,89.251,6.32898971]
[1772750497215,6.44774007,89.303,89.251,6.32898971]
[1772750497615,6.44774007,89.303,89.254,6.32898971]
[1772750499519,6.44774007,89.303,89.258,10.082]
[1772750499819,6.44774007,89.303,89.254,6.32898971]
[1772750500412,6.44774007,89.303,89.255,10.082]
[1772750500718,6.44774007,89.303,89.254,6.32898971]
[1772750500916,6.44774007,89.303,89.255,6.32898971]
[1772750501121,6.44774007,89.334,89.281,6.32898971]
[1772750501318,6.44774007,89.372,89.301,6.32898971]
[1772750501529,6.44774007,89.372,89.235,156.88]
[1772750501530,6.44774007,89.368,89.32,3.53543035]
[1772750502012,6.44774007,89.368,89.311,6.32898971]
[1772750503215,16.51774007,89.365,89.313,6.32898971]
[1772750503422,6.44774007,89.364,89.313,6.32898971]
[1772750505022,10.07,89.363,89.314,10.076]
[1772750505223,16.51774007,89.363,89.314,10.076]
[1772750505423,3.53543035,89.36,89.314,10.076]
[1772750505623,16.51774007,89.363,89.314,10.076]
[1772750505824,16.51774007,89.363,89.316,16.40398971]
[1772750506117,6.44774007,89.362,89.317,6.32898971]
[1772750506524,6.44774007,89.362,89.326,10.074]
[1772750507324,10.069,89.372,89.327,6.32898971]
[1772750507525,16.51674007,89.372,89.327,6.32898971]
[1772750507926,6.44774007,89.371,89.327,6.32898971]
[1772750508424,6.44774007,89.371,89.328,10.074]
[1772750508722,6.44774007,89.371,89.327,6.32898971]
[1772750508723,6.44774007,89.359,89.311,6.32898971]
[1772750508924,6.44774007,89.339,89.285,6.32898971]
[1772750509117,6.44774007,89.329,89.271,6.32898971]
[1772750509318,3.53543035,89.32,89.271,6.32898971]
[1772750509517,3.53543035,89.32,89.178,156.979]
[1772750509518,6.44774007,89.309,89.251,6.32898971]
[1772750510123,6.44774007,89.309,89.26,3.53543035]
[1772750510526,6.44774007,89.309,89.256,6.32898971]
[1772750510722,10.077,89.308,89.256,6.32898971]
[1772750511026,6.44774007,89.307,89.239,6.32898971]
[1772750512017,6.44774007,89.293,89.241,10.084]
[1772750512216,6.44774007,89.293,89.227,6.32898971]
[1772750512421,16.52774007,89.273,89.227,6.32898971]
[1772750512719,6.44774007,89.272,89.191,6.32898971]
[1772750513119,6.44774007,89.262,89.202,6.32898971]
[1772750514426,6.44774007,89.262,89.204,6.32898971]
[1772750516434,6.44774007,89.262,89.208,6.32898971]
[1772750516927,6.44774007,89.262,89.209,10.088]
[1772750517129,6.44774007,89.261,89.209,10.088]
[1772750517530,6.44774007,89.261,89.208,6.32898971]
[1772750517735,6.44774007,89.259,89.19,6.32898971]
[1772750518032,6.44774007,89.259,89.15,9.47189126]
[1772750518334,6.44774007,89.225,89.169,10.092]
[1772750519032,6.44774007,89.241,89.176,6.32898971]
[1772750520426,6.44774007,89.241,89.185,6.09883797]
[1772750520836,5.89093368,89.239,89.185,6.09883797]
[1772750522533,5.89093368,89.239,89.183,10.091]
[1772750522726,10.085,89.236,89.171,10.092]
[1772750522928,5.89093368,89.235,89.172,6.09883797]
[1772750524534,5.89093368,89.235,89.175,6.09883797]
[1772750525534,10.082,89.256,89.175,6.09883797]
[1772750525733,5.89093368,89.27,89.191,6.09883797]
[1772750527426,5.89093368,89.27,89.222,10.086]
[1772750535539,5.89093368,89.27,89.227,10.086]
[1772750536140,5.89093368,89.27,89.23,10.085]
[1772750537232,5.89093368,89.27,89.236,10.085]
[1772750538137,5.89093368,89.27,89.229,10.085]
[1772750538334,5.89093368,89.27,89.13,157.064]
[1772750538335,3.53482726,89.24,89.191,6.09883797]
[1772750538635,156.75,89.31,89.176,6.09883797]
[1772750538636,5.89093368,89.229,89.176,6.09883797]
[1772750538943,5.89093368,89.229,89.18,9.63366523]
[1772750539537,5.89093368,89.229,89.188,10.09]
[1772750539933,5.89093368,89.229,89.18,19.72466523]
[1772750540443,5.89093368,89.229,89.18,16.18983797]
[1772750540744,5.89093368,89.229,89.187,10.09]
[1772750542437,5.89093368,89.226,89.18,16.18983797]
[1772750542834,5.89093368,89.226,89.151,6.09883797]
[1772750543036,5.89093368,89.196,89.131,6.09883797]
[1772750543241,5.89093368,89.196,89.111,6.09883797]
[1772750544546,5.89093368,89.191,89.136,10.096]
[1772750547248,5.89093368,89.191,89.139,6.09883797]
[1772750549451,5.89093368,89.191,89.14,10.095]
[1772750549652,5.89093368,89.191,89.14,15.66969176]
[1772750550951,5.89093368,89.191,89.143,10.095]
[1772750553170,5.33982981,89.218,89.151,5.17201805]
[1772750553850,5.33982981,89.233,89.175,5.17201805]
[1772750555154,5.33982981,89.248,89.197,5.17201805]
[1772750557255,5.33982981,89.248,89.204,10.088]
[1772750562162,5.33982981,89.265,89.208,5.17201805]
[1772750562963,5.33982981,89.265,89.219,10.087]
[1772750563366,5.33982981,89.265,89.22,5.17201805]
[1772750565966,8.4514916,89.299,89.22,5.17201805]
[1772750565967,5.33982981,89.274,89.22,5.17201805]
[1772750567359,5.33982981,89.271,89.22,5.17201805]
[1772750568369,5.33982981,89.271,89.223,10.086]
[1772750569268,5.33982981,89.269,89.223,10.086]
[1772750570268,5.33982981,89.267,89.223,10.086]
[1772750572869,5.33982981,89.267,89.22,5.17201805]
[1772750573270,10.081,89.266,89.22,5.17201805]
[1772750575471,15.42182981,89.264,89.22,5.17201805]
[1772750575676,5.33982981,89.263,89.22,5.17201805]
[1772750576176,5.33982981,89.263,89.221,15.25801805]
[1772750576478,5.33982981,89.263,89.221,5.17201805]
[1772750578571,10.081,89.268,89.223,5.17201805]
[1772750580376,10.081,89.269,89.223,5.17201805]
[1772750580879,3.53528972,89.27,89.223,5.17201805]
[1772750581081,3.53528972,89.27,89.225,4.86568025]
[1772750581580,10.081,89.269,89.225,4.86568025]
[1772750583777,10.081,89.269,89.228,4.86568025]
[1772750587778,4.66866632,89.266,89.227,10.086]
[1772750587983,4.66866632,89.266,89.221,4.86568025]
[1772750588586,10.082,89.264,89.221,4.86568025]
[1772750593288,4.66866632,89.266,89.221,4.86568025]
[1772750594289,4.66866632,89.266,89.223,4.86568025]
[1772750595386,4.66866632,89.266,89.226,4.86568025]
[1772750596491,4.66866632,89.266,89.228,14.95068025]
[1772750599387,4.66866632,89.266,89.229,4.86568025]
[1772750601592,4.66866632,89.266,89.229,14.95068025]
[1772750602189,4.66866632,89.266,89.229,4.86568025]
[1772750604492,4.66866632,89.266,89.24,10.084]
[1772750605797,4.66866632,89.266,89.246,10.083]
[1772750605998,4.66866632,89.28,89.239,4.86568025]
[1772750606892,4.66866632,89.28,89.244,14.94968025]
[1772750607490,4.66866632,89.28,89.247,10.083]
[1772750608600,4.66866632,89.28,89.245,4.86568025]
[1772750608897,4.55423809,89.259,89.202,4.82792595]
[1772750609196,4.55423809,89.239,89.191,4.82792595]
[1772750609795,4.63629094,89.229,89.191,4.82792595]
[1772750610396,4.63629094,89.229,89.199,10.089]
[1772750614599,4.63629094,89.249,89.199,14.60517268]
[1772750614803,4.63629094,89.249,89.202,4.51617268]
[1772750615406,4.63629094,89.249,89.206,10.088]
[1772750617507,4.63629094,89.249,89.202,4.51617268]
[1772750618103,4.63629094,89.249,89.206,10.088]
[1772750622317,4.63629094,89.247,89.206,10.088]
[1772750622521,4.63629094,89.247,89.202,4.51617268]
[1772750624418,4.63629094,89.247,89.205,4.51617268]
[1772750625618,4.63629094,89.247,89.206,10.088]
[1772750627223,4.63629094,89.247,89.205,4.51617268]
[1772750627224,4.63629094,89.271,89.221,4.51617268]
[1772750627425,4.63629094,89.271,89.231,4.51617268]
[1772750627614,4.63629094,89.287,89.24,14.60017268]
[1772750627819,4.63629094,89.287,89.23,3.53528972]
[1772750628016,4.63629094,89.269,89.227,4.51617268]
[1772750628220,4.63629094,89.269,89.211,4.51617268]
[1772750629024,4.63629094,89.267,89.217,4.51617268]
[1772750629723,4.63629094,89.257,89.217,4.51617268]
[1772750630124,4.63629094,89.257,89.204,4.51617268]
[1772750630320,20.158,89.29,89.204,4.51617268]
[1772750630321,4.63629094,89.249,89.204,14.60417268]
[1772750630521,4.63629094,89.248,89.204,14.60417268]
[1772750630824,4.63629094,89.248,89.191,4.51617268]
[1772750631726,10.085,89.235,89.191,4.51617268]
[1772750632823,14.72129094,89.235,89.191,14.60617268]
[1772750633024,4.63629094,89.232,89.18,3.53528972]
[1772750633220,4.63629094,89.232,89.177,4.51617268]
[1772750633622,4.63629094,89.224,89.174,10.092]
[1772750633822,4.63629094,89.219,89.174,10.092]
[1772750634026,4.63629094,89.219,89.165,4.51617268]
[1772750634226,4.63629094,89.217,89.166,10.092]
[1772750634721,4.63629094,89.214,89.166,10.092]
[1772750635120,4.63629094,89.214,89.165,4.51617268]
[1772750635320,4.63629094,89.209,89.153,4.51617268]
[1772750635826,4.63629094,89.198,89.146,10.095]
[1772750636328,4.63629094,89.198,89.151,4.51617268]
[1772750637728,4.63629094,89.198,89.152,4.51617268]
[1772750640527,4.63629094,89.198,89.153,10.094]
[1772750640730,4.63629094,89.198,89.152,4.51617268]
[1772750642227,4.63629094,89.198,89.14,7.93911091]
[1772750642434,4.63629094,89.198,89.152,10.094]
[1772750643538,4.63629094,89.198,89.158,10.093]
[1772750643837,4.63629094,89.198,89.152,4.39930756]
[1772750644334,8.49219794,89.25,89.181,4.39930756]
[1772750644335,4.50201858,89.23,89.181,4.39930756]
[1772750644634,4.50201858,89.249,89.191,4.39930756]
[1772750644835,4.50201858,89.249,89.201,4.39930756]
[1772750645430,20.95881221,89.305,89.141,157.045]
[1772750645431,4.50201858,89.269,89.211,4.39930756]
[1772750645628,4.50201858,89.269,89.179,20.182]
[1772750645629,4.50201858,89.269,89.221,4.39930756]
[1772750646434,4.50201858,89.269,89.235,10.085]
[1772750646635,4.50201858,89.279,89.234,4.39930756]
[1772750648936,4.50201858,89.279,89.228,10.086]
[1772750652840,4.50201858,89.278,89.228,10.086]
[1772750653845,4.50201858,89.278,89.225,14.48530756]
[1772750654040,4.50201858,89.278,89.226,4.39930756]
[1772750654246,4.50201858,89.278,89.227,10.086]
[1772750655144,4.50201858,89.278,89.227,4.39930756]
[1772750655540,4.50201858,89.277,89.227,4.39930756]
[1772750656438,4.50201858,89.277,89.228,10.085]
[1772750657045,3.53980335,89.27,89.229,4.39930756]
[1772750657246,4.50201858,89.277,89.229,4.39930756]
[1772750658045,4.50201858,89.273,89.229,4.39930756]
[1772750658241,4.50201858,89.259,89.205,4.39930756]
[1772750658443,4.50201858,89.249,89.205,4.39930756]
[1772750658643,4.50201858,89.247,89.205,4.39930756]
[1772750659645,4.50201858,89.247,89.2,10.089]
[1772750659946,3.53980335,89.24,89.2,10.089]
[1772750660141,4.50201858,89.247,89.201,4.39930756]
[1772750660346,4.50201858,89.247,89.204,10.088]
[1772750663043,10.084,89.245,89.201,4.39930756]
[1772750663244,14.58601858,89.245,89.201,4.39930756]
[1772750663443,3.53980335,89.24,89.201,4.39930756]
[1772750663743,4.50201858,89.239,89.201,4.39930756]
[1772750666244,10.085,89.237,89.201,4.39930756]
[1772750667645,10.085,89.229,89.201,4.39930756]
[1772750668045,4.50201858,89.228,89.18,4.39930756]
[1772750668246,4.50201858,89.212,89.161,4.39930756]
[1772750668442,3.53980335,89.21,89.161,4.39930756]
[1772750668648,4.50201858,89.209,89.161,4.39930756]
[1772750669451,10.088,89.205,89.161,4.39930756]
[1772750669954,10.089,89.199,89.161,4.39930756]
[1772750670143,4.50201858,89.209,89.161,4.39930756]
[1772750670545,4.50201858,89.209,89.165,4.13100544]
[1772750672253,10.089,89.202,89.165,4.13100544]
[1772750672449,4.16219979,89.201,89.153,10.094]
[1772750672954,10.09,89.193,89.152,4.13100544]
[1772750673246,4.16219979,89.192,89.152,4.13100544]
[1772750674251,4.16219979,89.192,89.152,14.22500544]
[1772750676349,4.16219979,89.192,89.15,3.53980335]
[1772750676350,4.16219979,89.192,89.155,10.094]
[1772750676851,4.16219979,89.192,89.156,4.13100544]
[1772750677854,4.16219979,89.192,89.157,10.093]
[1772750678056,4.16219979,89.207,89.161,4.13100544]
[1772750678548,10.087,89.219,89.17,4.13100544]
[1772750679546,14.24919979,89.219,89.17,4.13100544]
[1772750680346,14.24919979,89.219,89.173,10.092]
[1772750680954,14.24919979,89.219,89.173,14.22300544]
[1772750681156,1.95133439,89.238,89.18,3.53980335]
[1772750681357,4.16219979,89.231,89.181,4.13100544]
[1772750681757,4.16219979,89.231,89.192,10.09]
[1772750681957,4.16219979,89.229,89.181,4.13100544]
[1772750683449,4.16219979,89.229,89.184,10.09]
[1772750683655,4.16219979,89.229,89.181,4.13100544]
[1772750683958,4.16219979,89.229,89.183,10.091]
[1772750684159,4.16219979,89.229,89.183,14.22200544]
[1772750687057,4.16219979,89.229,89.184,4.13100544]
[1772750687555,10.086,89.226,89.184,4.13100544]
[1772750688459,4.16219979,89.229,89.184,4.13100544]
[1772750689559,4.16219979,89.229,89.186,4.13100544]